[Event "1st Semana Santa Torrevieja 2022"]
[Site "Torrevieja Alicante"]
[Date "2022.04.13"]
[Round "1.12"]
[White "Alonso Perez, Alfredo"]
[Black "Rakotomaharo, Fy Antenaina"]
[Result "*"]
[WhiteElo "1829"]
[BlackElo "2474"]
[Annotator "TA"]
[PlyCount "32"]
[EventDate "2022.04.12"]
[EventType "swiss"]
[EventCountry "ESP"]
[SourceTitle "playchess.com"]
[Source "ChessBase"]
[SourceQuality "1"]
[TimeControl "5400+30"]

{[%evp 4,4,24]} 1. d4 {[%emt 1:31:00]} d5 2. c4 e6 {[%emt 0:01:00] An uneventful encounter.} {Predecessor:} 3. Nc3 c5 4. e3 Nf6 5. Nf3 a6 6. cxd5 {D32: Tarrasch Defence: Sidelines and lines without g3.} exd5 7. Be2 Nc6 8. O-O cxd4 9. exd4 Be7 10. Ne5 O-O 11. Bf4 Bf5 12. Nxc6 bxc6 13. Rc1 Bd6 14. Bxd6 Qxd6 15. Na4 a5 16. Nc5 Rfe8 {½-½ (56) Ding,L (2799)-Carlsen,M (2864) chess24.com INT 2022} *

[Event "1st Semana Santa Torrevieja 2022"]
[Site "Torrevieja Alicante"]
[Date "2022.04.13"]
[Round "1.16"]
[White "Alonso Vargas, David"]
[Black "Aagaard, Jacob"]
[Result "*"]
[WhiteElo "1808"]
[BlackElo "2465"]
[Annotator "TA"]
[PlyCount "32"]
[EventDate "2022.04.12"]
[EventType "swiss"]
[EventCountry "ESP"]
[SourceTitle "playchess.com"]
[Source "ChessBase"]
[SourceQuality "1"]
[TimeControl "5400+30"]

{[%evp 4,4,33]} 1. c4 {[%emt 1:31:00]} e6 2. d4 d5 {[%emt 1:31:30] An uneventful encounter.} {Predecessor:} 3. Nc3 c5 4. e3 Nf6 5. Nf3 a6 6. cxd5 {D32: Tarrasch Defence: Sidelines and lines without g3.} exd5 7. Be2 Nc6 8. O-O cxd4 9. exd4 Be7 10. Ne5 O-O 11. Bf4 Bf5 12. Nxc6 bxc6 13. Rc1 Bd6 14. Bxd6 Qxd6 15. Na4 a5 16. Nc5 Rfe8 {½-½ (56) Ding,L (2799)-Carlsen,M (2864) chess24.com INT 2022} *

[Event "1st Semana Santa Torrevieja 2022"]
[Site "Torrevieja Alicante"]
[Date "2022.04.14"]
[Round "2.1"]
[White "Guadamuro Torrente, Anabel"]
[Black "Grigoryan, Karen H."]
[Result "0-1"]
[ECO "B24"]
[WhiteElo "2108"]
[BlackElo "2636"]
[Annotator "TA"]
[PlyCount "72"]
[EventDate "2022.04.12"]
[EventType "swiss"]
[EventCountry "ESP"]
[SourceTitle "playchess.com"]
[Source "ChessBase"]
[SourceQuality "1"]
[TimeControl "5400+30"]

{[%evp 16,72,-10,-13,-14,-6,-2,-11,-7,-25,-10,-7,-11,-10,-7,-16,-20,-31,-17,-49,-49,-92,-91,-92,-86,-84,-82,-85,-90,-91,-80,-93,-58,-117,-120,-142,-106,-210,-208,-525,-502,-725,-654,-591,-587,-847,-938,-1277,-1166,-1105,-1104,-1082,-1082,-29986,-29987,-29987,-29988,-29988,-29989]} 1. e4 {[%emt 0:05:58]} c5 {[%emt 0:00:12]} 2. d3 {[%emt 0:00:12]} Nc6 {[%emt 0:00:10]} 3. g3 {[%emt 0:00:06]} g6 {[%emt 0:00:37]} 4. Bg2 {[%emt 0:00:10]} Bg7 {[%emt 0:00:09]} 5. f4 {[%emt 0:00:10]} e6 {[%emt 0:02:31]} 6. Nf3 {[%emt 0:00:57]} Nge7 {[%emt 0:00:15]} 7. O-O {[%emt 0:00:26]} O-O {[%emt 0:00:11]} 8. Nc3 {[%emt 0:10:28]} d5 {[%emt 0:01:24]} 9. e5 {[%emt 0:00:35]} f6 {[%emt 0:04:05] B24: Closed Sicilian: 3 g3 sidelines.} 10. exf6 {[%emt 0:08:19]} Bxf6 {[%emt 0:00:48]} 11. Re1 {[%emt 0:00:10]} Nf5 {[%emt 0:02:08] The position is equal.} 12. Ne2 {[%emt 0:19:28]} b5 {[%emt 0:03:42][%cal Bb7b5,Bb5b4][%mdl 32]} 13. g4 {[%emt 0:04:33] [#]} Nh4 $146 {[%emt 0:06:30]} ({Predecessor:} 13... Nfd4 14. Nexd4 Nxd4 15. c3 Nxf3+ 16. Qxf3 Qd6 17. Qg3 Bb7 18. h4 Rae8 19. h5 gxh5 {0-1 (28) Maljush,A (2371)-Khachykian,D (2001) Minsk 2005}) 14. Nxh4 {[%emt 0:01:35]} Bxh4 {[%emt 0:00:09]} 15. Ng3 {[%emt 0:00:23]} Qd6 {[%emt 0:01:22]} 16. c3 {[%emt 0:07:23]} Bd7 {[%emt 0:06:50]} 17. a4 {[%emt 0:06:29]} b4 {[%emt 0:02:01]} 18. d4 {[%emt 0:07:23]} cxd4 {[%emt 0:02:15]} 19. cxd4 {[%emt 0:00:33]} Rxf4 {[%emt 0:00:17]} 20. Bxf4 {[%emt 0:06:24]} Qxf4 {[%emt 0:00:30]} 21. Rf1 {[%emt 0:03:04]} Qe3+ {[%emt 0:01:37]} 22. Kh1 {[%emt 0:00:17]} Nxd4 {[%emt 0:01:42]} 23. Re1 {[%emt 0:02:24]} Qf4 {[%emt 0:02:19] &Nero is much more active.} 24. Re4 {[%emt 0:10:44]} dxe4 $17 {[%emt 0:00:30]} 25. Qxd4 {[%emt 0:01:21]} Rd8 {[%emt 0:10:07]} 26. Rf1 {[%emt 0:00:51]} (26. Nxe4 $17 Bc6 27. Qxb4) 26... Qc7 $19 {[%emt 0:00:45]} ({Not} 26... Qxg4 27. Nxe4 e5 28. Qxb4 $17) 27. Nxe4 {[%emt 0:00:20] [#]} (27. Qxb4 {is a better chance.} e3 28. Qe4) 27... Bb5 $1 {[%emt 0:00:34][%mdl 512] This bishop pair is nice.} 28. Qxd8+ {[%emt 0:01:57]} (28. Qc5 Qxc5) 28... Qxd8 {[%emt 0:00:29]} 29. axb5 {[%emt 0:00:04]} Qd4 {[%emt 0:03:55]} 30. Rc1 {[%emt 0:01:28]} Qxb2 {[%emt 0:00:26]} 31. Rc8+ {[%emt 0:00:09]} Kf7 {[%emt 0:00:44]} 32. Rc7+ {[%emt 0:00:07]} Kf8 {[%emt 0:00:34] [#] ( -> ...Qa1+)} 33. Bf3 {[%emt 0:01:13]} b3 {[%emt 0:01:28] White must now prevent ...Qa1+.} 34. Nc5 {[%emt 0:00:14]} Qf2 {[%emt 0:01:06][%cal Rf2f1] Black mates.} 35. Nxe6+ {[%emt 0:00:39]} Kg8 {[%emt 0:00:09][%cal Rf2f1]} 36. Rc8+ {[%emt 0:01:10]} Kf7 {[%emt 0:00:07] Weighted Error Value: White=0.82/Black=0.09 (flawless)} 0-1

[Event "1st Semana Santa Torrevieja 2022"]
[Site "Torrevieja Alicante"]
[Date "2022.04.14"]
[Round "2.2"]
[White "Moussard, Jules"]
[Black "Gromovs, Sergejs"]
[Result "1-0"]
[ECO "B90"]
[WhiteElo "2630"]
[BlackElo "2080"]
[Annotator "TA"]
[PlyCount "45"]
[EventDate "2022.04.12"]
[EventType "swiss"]
[EventCountry "ESP"]
[SourceTitle "playchess.com"]
[Source "ChessBase"]
[SourceQuality "1"]
[TimeControl "5400+30"]

{[%evp 15,45,6,15,15,21,6,30,14,18,30,40,23,57,48,58,41,101,100,217,215,266,87,81,81,285,143,137,140,118,136,583,586]} 1. e4 {[%emt 0:00:48]} c5 {[%emt 0:04:12]} 2. Nf3 {[%emt 0:00:18][%cal Bg1f3,Bf3d4,Bd4e2,Be2g3][%mdl 32]} d6 {[%emt 0:00:02]} 3. d4 {[%emt 0:01:21]} cxd4 {[%emt 0:00:05]} 4. Nxd4 {[%emt 0:00:07]} Nf6 {[%emt 0:00:04]} 5. Nc3 {[%emt 0:00:07]} a6 {[%emt 0:00:02]} 6. Bd3 {[%emt 0:02:24]} e5 {[%emt 0:00:05]} 7. Nde2 {[%emt 0:00:05]} Be7 {[%emt 0:00:04]} 8. O-O {[%emt 0:01:37]} O-O {[%emt 0:00:03]} 9. Ng3 {[%emt 0:03:41] B90: Sicilian Najdorf: Unusual White 6th moves, 6 Be3 Ng4 and 6 Be3 e5.} b5 {[%emt 0:00:16]} 10. f4 {[%emt 0:02:36]} exf4 {[%emt 0:00:21]} 11. Bxf4 {[%emt 0:00:11] [#] White has an edge.} Nc6 $146 {[%emt 0:00:01]} ({Predecessor:} 11... Ng4 12. Nd5 Ne5 13. a4 b4 14. Be3 Nbc6 15. a5 Rb8 16. Nf5 Bg5 17. Bb6 Rxb6 18. Nxb6 {1-0 (32) Priyanka,K (2067)-Kurbonboeva,S (2266) Navrangpura 2019}) 12. a4 {[%emt 0:18:45]} b4 {[%emt 0:00:34]} 13. Nd5 {[%emt 0:00:07]} Ne5 {[%emt 0:00:29]} 14. Nxe7+ {[%emt 0:02:58]} Qxe7 {[%emt 0:00:02]} 15. Kh1 {[%emt 0:00:12]} Qa7 {[%emt 0:09:42]} ({Better is} 15... h6 $14) 16. Qd2 $16 {[%emt 0:01:53]} Qc5 {[%emt 0:06:09]} (16... Nxd3 $16 {was worth a try.} 17. cxd3 (17. Qxd3 a5 $14) 17... Ne8 18. Qxb4 Be6) 17. Be3 $18 {[%emt 0:01:16]} Qc7 {[%emt 0:00:29] [#]} 18. Qxb4 $2 {[%emt 0:04:57]} (18. Rxf6 $1 $18 {[%mdl 512] and the rest is easy.} gxf6 19. Nh5) 18... Rb8 $16 {[%emt 0:00:04]} 19. Qd2 {[%emt 0:05:14][%cal Of1f6] Black must now prevent Rxf6! &Bianco is more active.} Rxb2 $2 {[%emt 0:00:31] [#]} (19... Nfg4 $16) 20. Bd4 {[%emt 0:02:00]} (20. Rxf6 $1 $18 {[%cal Od2e1][%mdl 512] aiming for Qe1!} Nxd3 21. Qxd3 gxf6 22. Rc1) 20... Nxd3 {[%emt 0:00:44]} 21. Bxb2 {[%emt 0:01:17]} ({Reject} 21. Qxd3 $6 Qxc2 22. Qxc2 Rxc2 $11) 21... Nxb2 {[%emt 0:00:05] [#]} 22. Rxf6 $1 {[%emt 0:00:15][%cal Og3h5]} gxf6 $4 {[%emt 0:00:18][%mdl 8192] [#]} (22... Nc4 $16 {is more resistant.} 23. Qg5 Kh8) 23. Nh5 $1 {[%emt 0:00:54] Weighted Error Value: White=0.23 (precise) /Black=0.91} 1-0

[Event "1st Semana Santa Torrevieja 2022"]
[Site "Torrevieja Alicante"]
[Date "2022.04.14"]
[Round "2.3"]
[White "Cuenca Jimenez, Francisco Javier"]
[Black "Iturrizaga Bonelli, Eduardo"]
[Result "0-1"]
[ECO "A37"]
[WhiteElo "2093"]
[BlackElo "2595"]
[Annotator "TA"]
[PlyCount "88"]
[EventDate "2022.04.12"]
[EventType "swiss"]
[EventCountry "ESP"]
[SourceTitle "playchess.com"]
[Source "ChessBase"]
[SourceQuality "1"]
[TimeControl "5400+30"]

{[%evp 20,88,1,0,7,-18,-23,-27,-14,-8,-18,-11,0,-4,0,-16,-7,-15,-10,-18,-29,-16,0,0,0,-18,0,-26,-31,-45,-22,-40,-35,-30,-35,-90,-79,-90,-82,-87,-79,-91,0,-90,-80,-90,-115,-364,-328,-525,-530,-541,-262,-241,-256,-247,-70,-267,-5,-249,-250,-837,-827,-812,-808,-1077,-1063,-1669,-731,-704,-671]} 1. c4 {[%emt 0:00:08]} c5 {[%emt 0:01:13]} 2. Nc3 {[%emt 0:01:24]} g6 {[%emt 0:00:18]} 3. g3 {[%emt 0:00:13]} Bg7 {[%emt 0:00:06]} 4. Bg2 {[%emt 0:00:22]} Nc6 {[%emt 0:00:05]} 5. a3 {[%emt 0:02:55]} e6 {[%emt 0:04:17]} 6. b4 {[%emt 0:05:11]} d6 {[%emt 0:00:46]} 7. Nf3 {[%emt 0:08:13]} Nge7 {[%emt 0:00:47]} 8. O-O {[%emt 0:03:11]} O-O {[%emt 0:00:15]} 9. Rb1 {[%emt 0:02:56]} b6 {[%emt 0:02:30]} 10. Qc2 {[%emt 0:05:54]} Bb7 {[%emt 0:01:35]} 11. d3 {[%emt 0:04:05]} Qd7 {[%emt 0:05:06] A37: Symmetrical English vs ...g6: 4 Bg2 Bg7 5 Nf3.} 12. bxc5 {[%emt 0:03:54]} dxc5 {[%emt 0:00:27] [#]} 13. Rd1 $146 {[%emt 0:02:55]} ({Predecessor:} 13. Nb5 h6 14. Bb2 e5 15. Rfd1 Nd4 16. Nbxd4 exd4 17. Ne1 f5 18. e3 Nc6 19. Bd5+ {½-½ (38) Gonzalez Parejo,R (2129)-Ruiz Castillo,J (2393) Quibdo 2015}) 13... h6 {[%emt 0:00:52] Black has an edge.} 14. Bb2 {[%emt 0:01:38]} Rac8 {[%emt 0:02:31]} 15. e3 {[%emt 0:07:36]} Rfd8 {[%emt 0:04:36]} 16. h4 {[%emt 0:05:47]} Nf5 {[%emt 0:01:54][%cal Oc6d4]} 17. Ne4 {[%emt 0:02:17]} e5 {[%emt 0:02:28]} 18. Bh3 {[%emt 0:02:38][%cal Oh4h5]} Rc7 {[%emt 0:03:37][%cal Of5e3] ...Nxe3! is the strong threat.} 19. Kh2 {[%emt 0:02:42]} Bc8 {[%emt 0:05:11][%cal Of5e3]} 20. Bg2 {[%emt 0:07:03]} Bb7 {[%emt 0:02:43]} 21. Bh3 {[%emt 0:01:11]} Bc8 {[%emt 0:00:20][%cal Of5e3] White should prevent ...Nxe3!} 22. Bg2 {[%emt 0:00:56]} Nfe7 {[%emt 0:01:30]} 23. Nc3 {[%emt 0:01:48]} (23. d4 $5 cxd4 24. exd4 exd4 25. Nxd4 Nxd4 26. Rxd4 Bxd4 27. Rd1 $11) 23... Qe8 {[%emt 0:02:35]} 24. Nb5 {[%emt 0:07:57]} Rb7 {[%emt 0:02:54]} 25. Nc3 {[%emt 0:04:10]} Bg4 {[%emt 0:00:29]} 26. Rd2 {[%emt 0:01:22]} Rbd7 {[%emt 0:00:57]} 27. e4 {[%emt 0:04:54]} ({White should play} 27. Kg1 $15) 27... f5 $17 {[%emt 0:04:39][%cal Og6g5,Bf7f5,Bf5f4][%mdl 32] Strongly threatening ...g5!} 28. Nd5 {[%emt 0:01:03]} Qf7 {[%emt 0:00:05]} 29. Ng1 {[%emt 0:03:08]} f4 {[%emt 0:00:43]} (29... Nxd5 $6 30. cxd5 Nd4 31. Bxd4 cxd4 32. f3 $11) 30. Bh3 {[%emt 0:00:53]} h5 {[%emt 0:00:08]} (30... Nxd5 $6 31. exd5 (31. Bxg4 $2 fxg3+ 32. fxg3 Ne3 $19) 31... Nd4 32. Bxd4 Bxh3 33. Nxh3 $11) (30... Bxh3 $17 31. Nxh3 f3) 31. Rf1 {[%emt 0:02:06]} (31. Bxg4 hxg4 32. gxf4 exf4 $19) (31. f3 $1 $11 fxg3+ 32. Kxg3) 31... Bh6 {[%emt 0:05:10]} 32. Bxg4 {[%emt 0:00:30]} hxg4 {[%emt 0:00:08]} 33. gxf4 (33. f3 $17) 33... Bxf4+ {[%emt 0:00:53]} 34. Nxf4 $2 {[%emt 0:04:32]} (34. Kg2 {was the only defense.} Nxd5 35. cxd5) 34... exf4 $19 {[%emt 0:03:24]} 35. f3 {[%emt 0:00:25]} Qh7 {[%emt 0:01:25]} (35... g3+ $142 36. Kh1 g5) 36. fxg4 {[%emt 0:00:58]} Qxh4+ {[%emt 0:00:07]} 37. Kg2 {[%emt 0:00:52]} g5 {[%emt 0:04:23]} (37... Qxg4+ 38. Kh1) (37... Qg3+ $19 38. Kh1 Rxd3) 38. Nf3 $2 {[%emt 0:00:15]} ({White has to play} 38. Rf3 $15) 38... Qg3+ {[%emt 0:00:15]} 39. Kh1 {[%emt 0:00:08] [#]} Ng6 $1 {[%emt 0:00:11]} ({Don't play} 39... Qxg4 {[#]} 40. Nxg5 $1 Qxg5 41. Rg2 $18) ({Inferior is} 39... Qh3+ 40. Kg1 $11) 40. Nxg5 $2 {[%emt 0:01:47]} (40. Rh2 Rxd3 41. Qe2 (41. Nxg5 $2 Nce5 $19)) 40... Qh4+ {[%emt 0:00:29] Black is clearly winning.} 41. Rh2 {[%emt 0:00:29]} Qxg5 {[%emt 0:00:04]} 42. Rh5 {[%emt 0:00:33]} Qxg4 {[%emt 0:00:11]} 43. Qh2 {[%emt 0:00:17] [#]} Qxh5 $3 {[%emt 0:00:26][%mdl 512]} 44. Qxh5 {[%emt 0:00:15]} Rh7 {[%emt 0:00:05] Weighted Error Value: White=0.69/Black=0.50} 0-1

[Event "1st Semana Santa Torrevieja 2022"]
[Site "Torrevieja Alicante"]
[Date "2022.04.14"]
[Round "2.4"]
[White "Yuffa, Daniil"]
[Black "Varela La Madrid, Tilsia Carolina"]
[Result "1-0"]
[ECO "E04"]
[WhiteElo "2576"]
[BlackElo "2104"]
[Annotator "TA"]
[PlyCount "75"]
[EventDate "2022.04.12"]
[EventType "swiss"]
[EventCountry "ESP"]
[SourceTitle "playchess.com"]
[Source "ChessBase"]
[SourceQuality "1"]
[TimeControl "5400+30"]

{[%evp 16,75,0,0,16,-1,16,0,15,21,57,-73,67,56,63,52,66,49,54,17,134,138,207,42,222,235,261,235,255,262,265,259,277,245,303,287,317,312,310,299,314,307,361,354,364,357,999,1010,966,404,780,768,925,727,1376,1252,1323,579,515,512,765,744]} 1. d4 {[%emt 0:07:00]} d5 {[%emt 0:00:04]} 2. c4 {[%emt 0:00:16]} e6 {[%emt 0:00:06]} 3. Nf3 {[%emt 0:00:12]} a6 {[%emt 0:00:12]} 4. g3 {[%emt 0:00:32]} dxc4 {[%emt 0:00:07]} 5. Bg2 {[%emt 0:00:05]} Nc6 {[%emt 0:00:02]} 6. O-O {[%emt 0:00:22]} Rb8 {[%emt 0:00:12]} 7. e4 {[%emt 0:02:58]} Nf6 {[%emt 0:02:30]} 8. Nc3 {[%emt 0:00:53]} Be7 {[%emt 0:03:57]} 9. Qe2 {[%emt 0:00:24] 9.d5 is more fashionable.} b5 {[%emt 0:02:33] 9...Nxd4 is not played anymore. E04: Open Catalan: 5 Nf3.} 10. d5 {[%emt 0:08:36]} (10. Rd1 $5 {[%cal Rd4d5]}) 10... Nb4 {[%emt 0:06:03][%cal Re6d5]} 11. Rd1 {[%emt 0:02:21] Threatens to win with dxe6.} exd5 {[%emt 0:21:29] The position is equal.} 12. e5 $1 {[%emt 0:00:08] aiming for a3.} O-O {[%emt 0:00:05] [#]} 13. Nd4 $146 {[%emt 0:12:39] [#]} (13. a3 $14 {stays ahead.} Nd3 14. exf6 Bxf6 15. Rxd3 cxd3 16. Qxd3) ({Predecessor:} 13. exf6 Bxf6 14. a3 Re8 15. Be3 Nd3 16. Ne1 d4 17. Nxd3 cxd3 18. Rxd3 Bf5 19. Rd2 {0-1 (37) Kezin,R (2455)-Potkin,V (2574) Sochi 2017}) 13... c5 {[%emt 0:03:46]} 14. exf6 $14 {[%emt 0:01:37]} Bxf6 {[%emt 0:00:14] [#]} 15. Nxd5 $1 {[%emt 0:00:57] &Bianco is more active.} cxd4 {[%emt 0:11:52]} (15... Nxd5 16. Nc6 Qe8 17. Qxe8 Rxe8 18. Nxb8 $16) 16. Nxb4 {[%emt 0:00:13]} d3 {[%emt 0:01:56]} 17. Qh5 {[%emt 0:08:57]} (17. Qf1 $5 {[%cal Rb4c6]}) 17... Rb6 {[%emt 0:10:19]} (17... g6 $11 18. Qh6 Bb7) 18. Nd5 {[%emt 0:03:18]} Rd6 {[%emt 0:02:06]} (18... Re6 $16) 19. a4 $2 {[%emt 0:01:44]} (19. Be4 h6 $14) (19. Nxf6+ $18 Qxf6 20. a4 (20. Bf4 Rdd8 $16)) 19... g6 $2 {[%emt 0:04:40] This move loses the game for Black.} (19... Bd4 $1 $14) 20. Nxf6+ $18 {[%emt 0:02:00]} Qxf6 {[%emt 0:00:08]} 21. Qc5 {[%emt 0:10:55] Hoping for Bf4.} Bg4 {[%emt 0:06:25]} 22. Bf4 {[%emt 0:00:26]} Rdd8 {[%emt 0:03:05]} 23. Rd2 {[%emt 0:03:37]} (23. axb5 Bxd1 24. Rxd1 Qxb2 25. bxa6 c3 $16) 23... Rc8 {[%emt 0:01:21]} 24. Qb4 {[%emt 0:01:07]} Bd7 {[%emt 0:02:27]} 25. Bb7 {[%emt 0:02:48]} Bc6 {[%emt 0:13:51]} 26. Bxc8 {[%emt 0:01:16]} ({Don't take} 26. Bxa6 Qf5) 26... Rxc8 {[%emt 0:00:05]} 27. axb5 {[%emt 0:00:50]} axb5 {[%emt 0:00:06]} 28. Qd6 {[%emt 0:03:25]} Qf5 {[%emt 0:00:52]} 29. Re1 {[%emt 0:02:07][%cal Ba1e1,Be1e3,Be3e5][%mdl 32]} ({Don't do} 29. f3 Bxf3 30. Rf2 Bc6 $18) 29... Qg4 {[%emt 0:02:36] [#] ...Qf3 is the strong threat.} 30. Re3 {[%emt 0:00:27] Prevents Qf3. Strongly threatening Bh6.} Bf3 $2 {[%emt 0:00:28]} (30... Qd7 31. Qf6 Qd8) 31. h3 {[%emt 0:03:27]} Qh5 {[%emt 0:00:06]} 32. Kh2 {[%emt 0:01:11]} (32. Qd7 $142 Qf5 33. Qxf5 gxf5 34. Rxf3) 32... Bg4 {[%emt 0:01:37]} (32... Bc6 $142 33. f3 h6) 33. h4 {[%emt 0:00:45] Black must now prevent Re5. White is clearly winning.} h6 {[%emt 0:00:51]} 34. Re5 {[%emt 0:01:00]} Bf5 {[%emt 0:00:13]} 35. Rxb5 {[%emt 0:00:26] White threatens Qf6 and mate.} Qg4 {[%emt 0:00:11]} 36. Rxf5 {[%emt 0:01:06]} Qxf5 {[%emt 0:00:10]} 37. Bxh6 {[%emt 0:00:18] Intending Qd4 and mate.} Re8 {[%emt 0:01:11]} 38. Qd4 {[%emt 0:00:16] Weighted Error Value: White=0.46/Black=0.56} 1-0

[Event "1st Semana Santa Torrevieja 2022"]
[Site "Torrevieja Alicante"]
[Date "2022.04.14"]
[Round "2.5"]
[White "Diaz Mino, Daniel"]
[Black "Cuenca Jimenez, Jose Fernando"]
[Result "0-1"]
[ECO "B30"]
[WhiteElo "2042"]
[BlackElo "2552"]
[Annotator "TA"]
[PlyCount "102"]
[EventDate "2022.04.12"]
[EventType "swiss"]
[EventCountry "ESP"]
[SourceTitle "playchess.com"]
[Source "ChessBase"]
[SourceQuality "1"]
[TimeControl "5400+30"]

{[%evp 14,102,7,-39,-37,-31,-40,-38,-39,-68,-67,-100,-91,-142,-152,-159,-129,-118,-108,-108,-113,-122,-117,-117,-108,-115,-115,-137,-119,-129,-122,-159,-158,-168,-124,-136,-113,-112,0,-113,-103,-103,-103,-102,-81,-87,-85,-87,-87,-87,-72,-75,-77,-68,-62,-72,-35,-205,-197,-221,-213,-219,-174,-297,-320,-510,-72,-55,-72,-55,-9,0,0,-245,-282,-947,-925,-1645,-1567,-1095,-939,-897,-870,-29985,-29986,-29986,-29987,-29986,-29984,-29983,-29980]} 1. e4 {[%emt 0:02:26]} c5 {[%emt 0:00:08]} 2. Nf3 {[%emt 0:00:22]} Nc6 {[%emt 0:00:07]} 3. Bb5 {[%emt 0:00:15]} e6 {[%emt 0:00:07]} 4. Bxc6 {[%emt 0:00:28]} bxc6 {[%emt 0:00:08]} 5. O-O {[%emt 0:02:58]} Ne7 {[%emt 0:00:06]} 6. b3 {[%emt 0:06:03]} Ng6 {[%emt 0:04:02]} 7. Bb2 {[%emt 0:01:49]} f6 {[%emt 0:04:26]} 8. d4 {[%emt 0:15:34]} (8. e5 $11) 8... cxd4 $15 {[%emt 0:01:00] B30: Sicilian: 2...Nc6 3 Bb5, lines without ...g6.} 9. Nxd4 {[%emt 0:00:27]} e5 $5 {[%emt 0:05:19][%mdl 4] An interesting side line.} 10. Nf5 {[%emt 0:05:09]} d5 {[%emt 0:03:51] [#] Black is slightly better.} 11. Ng3 $146 {[%emt 0:08:15]} ({Predecessor:} 11. Qh5 Be6 12. Nc3 Qc8 13. Rad1 dxe4 14. g4 Qc7 15. Nxe4 Bd5 16. Nfg3 O-O-O 17. Qf5+ {0-1 (54) Gdanski,J (2430)-Polgar,Z (2535) Polanica Zdroj 1991}) 11... Be6 {[%emt 0:03:45]} 12. Nd2 {[%emt 0:05:03]} Qd7 {[%emt 0:03:48]} 13. c4 {[%emt 0:03:40]} (13. exd5 $142 cxd5 14. c4) 13... d4 $17 {[%emt 0:05:36]} 14. Nf3 {[%emt 0:02:41]} c5 {[%emt 0:09:15]} 15. Ne1 {[%emt 0:02:07]} Bd6 {[%emt 0:00:39]} 16. Nd3 {[%emt 0:00:23]} O-O {[%emt 0:01:27]} 17. f3 {[%emt 0:03:06]} a5 {[%emt 0:04:02]} 18. a4 {[%emt 0:10:55]} Ne7 {[%emt 0:03:04]} 19. Ba3 {[%emt 0:01:19]} Qc7 {[%emt 0:01:19]} 20. Qd2 {[%emt 0:02:00]} Rab8 {[%emt 0:01:37]} 21. Rab1 {[%emt 0:01:29]} Rb7 {[%emt 0:00:17]} 22. Ne2 {[%emt 0:04:29]} Rfb8 {[%emt 0:01:05]} 23. Qc2 {[%emt 0:00:24]} Qc6 {[%emt 0:01:18]} 24. Bc1 {[%emt 0:04:22]} Qa6 {[%emt 0:04:54][%cal Oe6c4] aiming for ...Bxc4!} 25. Ba3 {[%emt 0:08:49]} Qc6 {[%emt 0:11:21]} 26. Bc1 $1 {[%emt 0:00:54]} Ng6 {[%emt 0:04:25]} 27. Bd2 {[%emt 0:00:54]} Bc7 {[%emt 0:00:52]} 28. Ng3 {[%emt 0:00:38]} Nf8 {[%emt 0:05:42]} 29. Rb2 {[%emt 0:02:06]} Nd7 {[%emt 0:00:58]} 30. Rfb1 {[%emt 0:01:31]} g6 {[%emt 0:01:26]} 31. Qd1 {[%emt 0:00:44]} Rf8 {[%emt 0:01:20]} 32. Qe1 {[%emt 0:00:28]} Ra7 {[%emt 0:00:04]} 33. Bh6 {[%emt 0:02:41]} Rf7 {[%emt 0:00:33]} 34. h4 {[%emt 0:00:01]} f5 {[%emt 0:03:20]} 35. exf5 $2 {[%emt 0:01:12]} ({Better is} 35. f4 $1 $15) 35... gxf5 $19 {[%emt 0:00:13]} 36. Re2 {[%emt 0:00:09][%cal Oh6f4] [#]} Bxc4 $1 {[%emt 0:04:05][%mdl 512]} 37. bxc4 {[%emt 0:00:30] Bg5 is the strong threat.} Qxh6 {[%emt 0:00:02]} 38. Rb5 {[%emt 0:01:10]} (38. Nf1 $142) 38... Qxh4 {[%emt 0:00:52][%cal Oe5e4]} (38... e4 39. fxe4 Qxh4 40. e5 $11) 39. Nxe5 {[%emt 0:01:12]} (39. Nf1 $142 Qxe1 40. Rxe1) 39... Nxe5 $2 {[%emt 0:07:06]} (39... Ra6 $19 40. f4 Nxe5 41. Rxe5 Bxe5 42. Qxe5 Qxg3 43. Rb8+ Rf8 44. Rxf8+ Kxf8 45. Qb8+ Kg7 46. Qb7+ Kh6 47. Qxa6+ Kh5) 40. Rxe5 $17 {[%emt 0:00:01]} Bxe5 {[%emt 0:00:26]} (40... d3 {gets mated.} 41. Re8+ Kg7 {[#]} 42. Nxf5+ $1 {[%mdl 512]} Rxf5 43. Qxh4 Ra6 44. Qg4+ Kh6 45. Qxf5) 41. Qxe5 {[%emt 0:00:03]} Ra8 {[%emt 0:00:27]} (41... Rf8 $1 $15 42. Nxf5 Qf6 43. Qd5+ (43. Qxc5 $2 Rd7 $19) 43... Kh8 44. Rxc5 Raa8 45. Qxd4 (45. Nxd4 $2 Rfd8 $19) 45... Qxd4+ 46. Nxd4 Rfc8) 42. Nxf5 $11 {[%emt 0:01:22]} Qf6 {[%emt 0:00:17]} 43. Qg3+ {[%emt 0:01:04]} (43. Qd5 $1 $11 {and White has nothing to worry.} Raf8 44. Nd6) 43... Kh8 $19 {[%emt 0:00:43]} 44. Rxc5 {[%emt 0:00:01]} (44. Nd6 Rg7 45. Ne4) 44... Rd8 {[%emt 0:01:15] White must now prevent ...d3.} 45. Qe1 {[%emt 0:00:57]} d3 {[%emt 0:00:38]} 46. Qd2 {[%emt 0:00:01]} Qb6 {[%emt 0:01:27][%csl LRc5,LRf5] ( -> ...Rxf5)} 47. Qc3+ {[%emt 0:01:13]} Kg8 {[%emt 0:00:26]} 48. Kh1 {[%emt 0:00:33]} Qxc5 {[%emt 0:00:44] Black mates.} 49. Nh6+ {[%emt 0:00:02]} Kf8 {[%emt 0:00:06]} 50. Nxf7 {[%emt 0:00:55]} Kxf7 {[%emt 0:00:15]} 51. Qd2 {[%emt 0:00:29]} Qe5 {[%emt 0:00:16] Weighted Error Value: White=0.70/Black=0.32} 0-1